[Event "*** Titled Tuesday Blitz"]
[Site "Chess.com"]
[Date "2020.11.03"]
[Round "3"]
[White "IwkooO"]
[Black "LimeInTheCoconut"]
[Result "0-1"]
[WhiteElo "2638"]
[BlackElo "2429"]
[TimeControl "180+1"]
[EndTime "10:31:21 PST"]
[Termination "LimeInTheCoconut won by checkmate"]

1. e4 {[%clk 0:03:00.9]} 1... c6 {[%clk 0:02:59.8]} 2. d4 {[%clk 0:03:00.9]}
2... d5 {[%clk 0:03:00.2]} 3. e5 {[%clk 0:03:01.4]} 3... Bf5 {[%clk 0:02:59.7]}
4. Nd2 {[%clk 0:03:01.2]} 4... e6 {[%clk 0:02:58.7]} 5. Nb3 {[%clk 0:03:01.6]}
5... c5 {[%clk 0:02:58.2]} 6. dxc5 {[%clk 0:02:57.1]} 6... Bxc5 {[%clk
0:02:58.4]} 7. Nxc5 {[%clk 0:02:57.3]} 7... Qa5+ {[%clk 0:02:59]} 8. c3 {[%clk
0:02:57.4]} 8... Qxc5 {[%clk 0:02:59.5]} 9. Be3 {[%clk 0:02:58]} 9... Qc7 {[%clk
0:02:58.2]} 10. f4 {[%clk 0:02:58.6]} 10... Ne7 {[%clk 0:02:55.4]} 11. Nf3
{[%clk 0:02:59.1]} 11... Nbc6 {[%clk 0:02:52.6]} 12. Be2 {[%clk 0:02:59.4]}
12... O-O {[%clk 0:02:50.2]} 13. O-O {[%clk 0:02:59.8]} 13... Bg4 {[%clk
0:02:50.2]} 14. h3 {[%clk 0:02:47.5]} 14... Bxf3 {[%clk 0:02:50.2]} 15. Bxf3
{[%clk 0:02:48.4]} 15... d4 {[%clk 0:02:31.4]} 16. cxd4 {[%clk 0:02:42.8]} 16...
Nf5 {[%clk 0:02:30.5]} 17. Bf2 {[%clk 0:02:32.2]} 17... Ncxd4 {[%clk 0:02:07.5]}
18. Be4 {[%clk 0:02:15.7]} 18... Rad8 {[%clk 0:02:01.2]} 19. g4 {[%clk 0:01:47]}
19... Ne7 {[%clk 0:01:44.4]} 20. Bxd4 {[%clk 0:01:12.7]} 20... Qc4 {[%clk
0:01:43.9]} 21. Rc1 {[%clk 0:00:51.3]} 21... Qxd4+ {[%clk 0:01:43.8]} 22. Qxd4
{[%clk 0:00:51.5]} 22... Rxd4 {[%clk 0:01:44.7]} 23. Bxb7 {[%clk 0:00:52.1]}
23... Ng6 {[%clk 0:01:33.1]} 24. f5 {[%clk 0:00:46.2]} 24... Nxe5 {[%clk
0:01:27.9]} 25. fxe6 {[%clk 0:00:35.9]} 25... fxe6 {[%clk 0:01:28.8]} 26. Bc8
{[%clk 0:00:30.9]} 26... Nf3+ {[%clk 0:01:20]} 27. Kg2 {[%clk 0:00:26.3]} 27...
Rd2+ {[%clk 0:01:02.4]} 28. Kg3 {[%clk 0:00:26.4]} 28... Nd4 {[%clk 0:00:55.2]}
29. Rcd1 {[%clk 0:00:14]} 29... Rxd1 {[%clk 0:00:39.4]} 30. Rxd1 {[%clk
0:00:14.9]} 30... e5 {[%clk 0:00:33.6]} 31. Bb7 {[%clk 0:00:13.3]} 31... Rb8
{[%clk 0:00:12.6]} 32. Bd5+ {[%clk 0:00:12.8]} 32... Kf8 {[%clk 0:00:13.3]} 33.
b3 {[%clk 0:00:12]} 33... Ke7 {[%clk 0:00:13.4]} 34. Bc4 {[%clk 0:00:09.7]}
34... Rf8 {[%clk 0:00:12.3]} 35. Re1 {[%clk 0:00:06.4]} 35... Rf3+ {[%clk
0:00:09.5]} 36. Kg2 {[%clk 0:00:06.5]} 36... Kd6 {[%clk 0:00:09.9]} 37. Rd1
{[%clk 0:00:05.6]} 37... Rc3 {[%clk 0:00:09.6]} 38. Rf1 {[%clk 0:00:04.6]} 38...
Rc2+ {[%clk 0:00:07.5]} 39. Kg3 {[%clk 0:00:03.7]} 39... Rxa2 {[%clk 0:00:06.6]}
40. Rf7 {[%clk 0:00:04.2]} 40... g5 {[%clk 0:00:06]} 41. Rxh7 {[%clk 0:00:02.9]}
41... e4 {[%clk 0:00:03.6]} 42. Rh6+ {[%clk 0:00:02.6]} 42... Ke5 {[%clk
0:00:03.3]} 43. Rh8 {[%clk 0:00:03.1]} 43... Ne2+ {[%clk 0:00:02]} 44. Kf2
{[%clk 0:00:02.2]} 44... Nf4+ {[%clk 0:00:01.9]} 45. Kg3 {[%clk 0:00:02.2]}
45... Rg2# {[%clk 0:00:01.6]} 0-1

[Event "*** Titled Tuesday Blitz"]
[Site "Chess.com"]
[Date "2020.11.03"]
[Round "3"]
[White "djano"]
[Black "monalize"]
[Result "1-0"]
[WhiteElo "2464"]
[BlackElo "2263"]
[TimeControl "180+1"]
[EndTime "10:31:21 PST"]
[Termination "djano won on time"]

1. d4 {[%clk 0:03:00.9]} 1... Nf6 {[%clk 0:01:18.5]} 2. Bf4 {[%clk 0:02:59.4]}
2... d6 {[%clk 0:01:18.5]} 3. Nc3 {[%clk 0:02:59]} 3... g6 {[%clk 0:01:18.7]} 4.
e4 {[%clk 0:02:59.1]} 4... Bg7 {[%clk 0:01:17.8]} 5. Qd2 {[%clk 0:02:59.5]} 5...
c6 {[%clk 0:01:16.7]} 6. Bh6 {[%clk 0:02:58.4]} 6... Bxh6 {[%clk 0:01:15.8]} 7.
Qxh6 {[%clk 0:02:59.3]} 7... Qa5 {[%clk 0:01:15.6]} 8. O-O-O {[%clk 0:02:58.9]}
8... Be6 {[%clk 0:01:14.5]} 9. Kb1 {[%clk 0:02:44]} 9... b5 {[%clk 0:01:10]} 10.
d5 {[%clk 0:02:37.7]} 10... cxd5 {[%clk 0:01:07.3]} 11. Nxd5 {[%clk 0:02:35.1]}
11... Nbd7 {[%clk 0:01:05.6]} 12. f3 {[%clk 0:02:24.9]} 12... Rc8 {[%clk
0:00:55.8]} 13. Ne2 {[%clk 0:02:23.5]} 13... b4 {[%clk 0:00:54.8]} 14. Nc1
{[%clk 0:02:11.5]} 14... Nxd5 {[%clk 0:00:52.8]} 15. exd5 {[%clk 0:02:11.8]}
15... Bxd5 {[%clk 0:00:51.4]} 16. Qg7 {[%clk 0:02:11.5]} 16... Rf8 {[%clk
0:00:48.6]} 17. Bd3 {[%clk 0:02:08.5]} 17... Be6 {[%clk 0:00:46.9]} 18. Rhe1
{[%clk 0:02:04.9]} 18... Ne5 {[%clk 0:00:40.5]} 19. Nb3 {[%clk 0:01:57.1]} 19...
Qc7 {[%clk 0:00:35.8]} 20. Nd4 {[%clk 0:01:50]} 20... Nxd3 {[%clk 0:00:34.4]}
21. Rxe6 {[%clk 0:01:42.2]} 21... fxe6 {[%clk 0:00:29.9]} 22. Qxf8+ {[%clk
0:01:40.8]} 22... Kxf8 {[%clk 0:00:29.2]} 23. Nxe6+ {[%clk 0:01:41.2]} 23... Kf7
{[%clk 0:00:29.2]} 24. Nxc7 {[%clk 0:01:41.3]} 24... Rxc7 {[%clk 0:00:29.4]} 25.
Rxd3 {[%clk 0:01:41.2]} 25... Rc5 {[%clk 0:00:27.9]} 26. a3 {[%clk 0:01:41]}
26... bxa3 {[%clk 0:00:27.3]} 27. Rxa3 {[%clk 0:01:41.9]} 27... a5 {[%clk
0:00:26.2]} 28. c3 {[%clk 0:01:37.5]} 28... h5 {[%clk 0:00:25.5]} 29. Kc2 {[%clk
0:01:36.5]} 29... e5 {[%clk 0:00:24.5]} 30. Kd3 {[%clk 0:01:35.8]} 30... Ke6
{[%clk 0:00:24.1]} 31. b4 {[%clk 0:01:35.2]} 31... axb4 {[%clk 0:00:23.5]} 32.
cxb4 {[%clk 0:01:35.9]} 32... Rd5+ {[%clk 0:00:23.5]} 33. Kc3 {[%clk 0:01:33.8]}
33... Rd1 {[%clk 0:00:22.6]} 34. b5 {[%clk 0:01:33.2]} 34... Rc1+ {[%clk
0:00:19.7]} 35. Kb4 {[%clk 0:01:32.9]} 35... Kd7 {[%clk 0:00:19.1]} 36. Ra7+
{[%clk 0:01:31.7]} 36... Kc8 {[%clk 0:00:18.8]} 37. b6 {[%clk 0:01:31.8]} 37...
Rc2 {[%clk 0:00:17.7]} 38. Rg7 {[%clk 0:01:28.3]} 38... Rxg2 {[%clk 0:00:15.3]}
39. Kb5 {[%clk 0:01:28.7]} 39... Rc2 {[%clk 0:00:14.5]} 40. Rxg6 {[%clk
0:01:25.5]} 40... Rxh2 {[%clk 0:00:13.7]} 41. Kc6 {[%clk 0:01:20.8]} 41... Rc2+
{[%clk 0:00:12.8]} 42. Kxd6 {[%clk 0:01:20.9]} 42... h4 {[%clk 0:00:12.9]} 43.
Kxe5 {[%clk 0:01:16.1]} 43... h3 {[%clk 0:00:12.3]} 44. Rh6 {[%clk 0:01:16.3]}
44... h2 {[%clk 0:00:12.4]} 45. Rh7 {[%clk 0:01:11.5]} 45... Rb2 {[%clk
0:00:10.6]} 46. b7+ {[%clk 0:01:06.8]} 46... Rxb7 {[%clk 0:00:09.3]} 47. Rxh2
{[%clk 0:01:04.9]} 47... Rb5+ {[%clk 0:00:09.1]} 48. Ke6 {[%clk 0:01:02.3]}
48... Rb4 {[%clk 0:00:08.9]} 49. Rf2 {[%clk 0:01:00.4]} 49... Kd8 {[%clk
0:00:07.4]} 50. f4 {[%clk 0:00:59.7]} 50... Ke8 {[%clk 0:00:07.4]} 51. f5 {[%clk
0:00:54.9]} 51... Kf8 {[%clk 0:00:07.4]} 52. Ra2 {[%clk 0:00:52.7]} 52... Rb6+
{[%clk 0:00:04.4]} 53. Ke5 {[%clk 0:00:53.2]} 53... Kf7 {[%clk 0:00:04.6]} 54.
Ra7+ {[%clk 0:00:53]} 54... Kf8 {[%clk 0:00:04.8]} 55. Kf4 {[%clk 0:00:53.6]}
55... Rc6 {[%clk 0:00:03.8]} 56. Kg5 {[%clk 0:00:54.1]} 56... Rb6 {[%clk
0:00:03.8]} 57. Rc7 {[%clk 0:00:53.9]} 57... Ra6 {[%clk 0:00:03.4]} 58. Rc8+
{[%clk 0:00:54.1]} 58... Kf7 {[%clk 0:00:02.7]} 59. Rc7+ {[%clk 0:00:54.2]}
59... Kf8 {[%clk 0:00:02.3]} 60. Rb7 {[%clk 0:00:55.1]} 60... Rc6 {[%clk
0:00:01.1]} 61. Ra7 {[%clk 0:00:54.9]} 1-0

[Event "*** Titled Tuesday Blitz"]
[Site "Chess.com"]
[Date "2020.11.03"]
[Round "3"]
[White "abykhovsky"]
[Black "Lady_Nika"]
[Result "0-1"]
[WhiteElo "2722"]
[BlackElo "2476"]
[TimeControl "180+1"]
[EndTime "10:31:22 PST"]
[Termination "Lady_Nika won by resignation"]

1. e4 {[%clk 0:02:49.3]} 1... e6 {[%clk 0:02:59.6]} 2. d4 {[%clk 0:02:49.4]}
2... d5 {[%clk 0:02:57.5]} 3. e5 {[%clk 0:02:49.9]} 3... c5 {[%clk 0:02:57.3]}
4. c3 {[%clk 0:02:49.8]} 4... Nc6 {[%clk 0:02:57.4]} 5. Nf3 {[%clk 0:02:49.4]}
5... Qb6 {[%clk 0:02:57.4]} 6. Be2 {[%clk 0:02:48.8]} 6... Bd7 {[%clk
0:02:56.5]} 7. a3 {[%clk 0:02:47.7]} 7... c4 {[%clk 0:02:56.1]} 8. Nbd2 {[%clk
0:02:47]} 8... f6 {[%clk 0:02:55.9]} 9. exf6 {[%clk 0:02:46.5]} 9... gxf6 {[%clk
0:02:55.9]} 10. O-O {[%clk 0:02:46.7]} 10... O-O-O {[%clk 0:02:55.6]} 11. b3
{[%clk 0:02:44.4]} 11... cxb3 {[%clk 0:02:53.5]} 12. Nxb3 {[%clk 0:02:44.9]}
12... Bd6 {[%clk 0:02:52.3]} 13. Rb1 {[%clk 0:02:44.5]} 13... Qc7 {[%clk
0:02:51]} 14. c4 {[%clk 0:02:39.2]} 14... Nge7 {[%clk 0:02:47.1]} 15. c5 {[%clk
0:02:34.1]} 15... Bf4 {[%clk 0:02:46.3]} 16. Re1 {[%clk 0:02:28.4]} 16... Rhg8
{[%clk 0:02:44.8]} 17. Bf1 {[%clk 0:02:28.6]} 17... Bxc1 {[%clk 0:02:43.4]} 18.
Qxc1 {[%clk 0:02:27.9]} 18... e5 {[%clk 0:02:23.7]} 19. dxe5 {[%clk 0:02:25.7]}
19... fxe5 {[%clk 0:02:22.9]} 20. a4 {[%clk 0:02:22.3]} 20... e4 {[%clk
0:02:22.7]} 21. Nfd4 {[%clk 0:02:22.1]} 21... Nxd4 {[%clk 0:02:14.6]} 22. Nxd4
{[%clk 0:02:22.2]} 22... Rg6 {[%clk 0:02:13.6]} 23. Nb5 {[%clk 0:02:21.8]} 23...
Bxb5 {[%clk 0:02:13.5]} 24. axb5 {[%clk 0:02:22]} 24... Nf5 {[%clk 0:02:10.5]}
25. Qa3 {[%clk 0:02:07.9]} 25... Nd4 {[%clk 0:02:07.6]} 26. b6 {[%clk
0:01:20.9]} 26... axb6 {[%clk 0:01:58.3]} 27. cxb6 {[%clk 0:01:20.6]} 27... Rxb6
{[%clk 0:01:46.3]} 28. Rbc1 {[%clk 0:00:51]} 28... Rc6 {[%clk 0:01:34.9]} 29.
Qa8+ {[%clk 0:00:40]} 29... Kd7 {[%clk 0:01:34.3]} 30. Qa4 {[%clk 0:00:40.1]}
30... Qe5 {[%clk 0:00:56.4]} 31. Rcd1 {[%clk 0:00:37.7]} 31... Ne6 {[%clk
0:00:53.4]} 32. Rxe4 {[%clk 0:00:36.6]} 32... Qh5 {[%clk 0:00:44.8]} 33. Rh4
{[%clk 0:00:33.4]} 33... Qf5 {[%clk 0:00:41.3]} 34. Bb5 {[%clk 0:00:32.8]} 34...
Rf8 {[%clk 0:00:33.4]} 35. Bxc6+ {[%clk 0:00:24.9]} 35... bxc6 {[%clk
0:00:33.1]} 36. Qa7+ {[%clk 0:00:25.5]} 36... Kd6 {[%clk 0:00:25.3]} 37. Re1
{[%clk 0:00:24.9]} 37... Rf7 {[%clk 0:00:17.1]} 38. Qa3+ {[%clk 0:00:20.6]}
38... Nc5 {[%clk 0:00:17.2]} 39. Qg3+ {[%clk 0:00:17.7]} 39... Kd7 {[%clk
0:00:16.3]} 40. Qh3 {[%clk 0:00:17.9]} 40... Nd3 {[%clk 0:00:13.9]} 41. Qxf5+
{[%clk 0:00:17]} 41... Rxf5 {[%clk 0:00:14.7]} 42. Rxh7+ {[%clk 0:00:17.7]}
42... Kd6 {[%clk 0:00:15.4]} 43. Rf1 {[%clk 0:00:18.6]} 43... c5 {[%clk
0:00:15]} 44. Rh6+ {[%clk 0:00:18.6]} 44... Ke5 {[%clk 0:00:14.5]} 45. g4 {[%clk
0:00:18.4]} 45... Rg5 {[%clk 0:00:13.3]} 46. Rh5 {[%clk 0:00:17.4]} 46... Kf4
{[%clk 0:00:12.3]} 47. Rxg5 {[%clk 0:00:17.6]} 47... Kxg5 {[%clk 0:00:12.5]} 48.
h3 {[%clk 0:00:18.5]} 48... c4 {[%clk 0:00:11]} 49. Rd1 {[%clk 0:00:19.2]} 49...
d4 {[%clk 0:00:10.9]} 50. Kh2 {[%clk 0:00:18.3]} 50... Kf4 {[%clk 0:00:10.8]}
51. Kg2 {[%clk 0:00:18.2]} 51... Ke4 {[%clk 0:00:10.7]} 52. h4 {[%clk
0:00:18.6]} 52... c3 {[%clk 0:00:11.1]} 53. h5 {[%clk 0:00:18.4]} 53... c2
{[%clk 0:00:11.4]} 54. Rh1 {[%clk 0:00:18.2]} 54... Nf4+ {[%clk 0:00:10.9]} 55.
Kg3 {[%clk 0:00:18.7]} 55... d3 {[%clk 0:00:10.8]} 56. h6 {[%clk 0:00:19]} 56...
Ng6 {[%clk 0:00:10.2]} 57. f3+ {[%clk 0:00:18.9]} 57... Ke3 {[%clk 0:00:10]} 58.
f4 {[%clk 0:00:19.5]} 58... d2 {[%clk 0:00:10.1]} 59. f5 {[%clk 0:00:20.1]}
59... Nh8 {[%clk 0:00:10.3]} 0-1

[Event "*** Titled Tuesday Blitz"]
[Site "Chess.com"]
[Date "2020.11.03"]
[Round "3"]
[White "BAS8892"]
[Black "Sebastian"]
[Result "1-0"]
[WhiteElo "2696"]
[BlackElo "2883"]
[TimeControl "180+1"]
[EndTime "10:31:23 PST"]
[Termination "BAS8892 won by checkmate"]

1. d4 {[%clk 0:03:00.9]} 1... Nf6 {[%clk 0:02:59.7]} 2. Bf4 {[%clk 0:03:00.1]}
2... d5 {[%clk 0:02:58.4]} 3. e3 {[%clk 0:03:00.2]} 3... e6 {[%clk 0:02:58.9]}
4. Nf3 {[%clk 0:02:59.9]} 4... Bd6 {[%clk 0:02:59.4]} 5. Bg3 {[%clk 0:03:00.1]}
5... O-O {[%clk 0:02:58.6]} 6. Nbd2 {[%clk 0:02:59.9]} 6... c5 {[%clk
0:02:58.7]} 7. c3 {[%clk 0:02:59.9]} 7... Qc7 {[%clk 0:02:59.1]} 8. dxc5 {[%clk
0:02:59]} 8... Qxc5 {[%clk 0:02:56.9]} 9. Bd3 {[%clk 0:02:58.9]} 9... Nbd7
{[%clk 0:02:50.3]} 10. Qe2 {[%clk 0:02:58.2]} 10... Rd8 {[%clk 0:02:27.1]} 11.
e4 {[%clk 0:02:43]} 11... dxe4 {[%clk 0:02:23.1]} 12. Nxe4 {[%clk 0:02:42]}
12... Nxe4 {[%clk 0:02:23]} 13. Bxe4 {[%clk 0:02:40.4]} 13... Bxg3 {[%clk
0:02:17.4]} 14. hxg3 {[%clk 0:02:39.7]} 14... Nf6 {[%clk 0:02:18]} 15. Bd3
{[%clk 0:02:36.1]} 15... h6 {[%clk 0:01:40.6]} 16. Ne5 {[%clk 0:02:33.5]} 16...
b6 {[%clk 0:01:12.5]} 17. O-O-O {[%clk 0:02:30.4]} 17... Bb7 {[%clk 0:01:12.3]}
18. f3 {[%clk 0:02:28.4]} 18... Rd5 {[%clk 0:00:59.7]} 19. Rhe1 {[%clk
0:02:27.7]} 19... Rad8 {[%clk 0:00:59.7]} 20. g4 {[%clk 0:02:26.2]} 20... b5
{[%clk 0:00:54.6]} 21. Kb1 {[%clk 0:02:23.2]} 21... a6 {[%clk 0:00:53.8]} 22. a3
{[%clk 0:02:21.6]} 22... Qd6 {[%clk 0:00:50.5]} 23. Bc2 {[%clk 0:02:17.7]} 23...
Qc7 {[%clk 0:00:45.6]} 24. Rxd5 {[%clk 0:02:09.3]} 24... Rxd5 {[%clk 0:00:45.1]}
25. g3 {[%clk 0:02:04.5]} 25... Qd6 {[%clk 0:00:44.7]} 26. Rd1 {[%clk
0:01:59.2]} 26... Rxd1+ {[%clk 0:00:37.7]} 27. Bxd1 {[%clk 0:01:58.6]} 27... Qc5
{[%clk 0:00:32.8]} 28. Qe1 {[%clk 0:01:53.4]} 28... Bd5 {[%clk 0:00:27.7]} 29.
Bc2 {[%clk 0:01:50.1]} 29... Qc7 {[%clk 0:00:25.4]} 30. f4 {[%clk 0:01:49.7]}
30... Nd7 {[%clk 0:00:24.8]} 31. Nxd7 {[%clk 0:01:47.4]} 31... Qxd7 {[%clk
0:00:24.7]} 32. Qe3 {[%clk 0:01:39.4]} 32... Qc7 {[%clk 0:00:22.7]} 33. Kc1
{[%clk 0:01:38.2]} 33... Qc4 {[%clk 0:00:21.7]} 34. Bd3 {[%clk 0:01:37]} 34...
Qc7 {[%clk 0:00:18.5]} 35. Kd2 {[%clk 0:01:33]} 35... Bc4 {[%clk 0:00:17.3]} 36.
Be4 {[%clk 0:01:29.3]} 36... a5 {[%clk 0:00:14]} 37. Qd4 {[%clk 0:01:28.9]}
37... g6 {[%clk 0:00:12.5]} 38. Ke3 {[%clk 0:01:27.3]} 38... a4 {[%clk
0:00:11.6]} 39. Qe5 {[%clk 0:01:22]} 39... Qb6+ {[%clk 0:00:11.3]} 40. Qd4
{[%clk 0:01:21.9]} 40... Qc7 {[%clk 0:00:11.7]} 41. Kf2 {[%clk 0:01:16.8]} 41...
Qb8 {[%clk 0:00:11]} 42. Qc5 {[%clk 0:01:15.1]} 42... Qd8 {[%clk 0:00:10.2]} 43.
Qd4 {[%clk 0:01:14.8]} 43... Qc7 {[%clk 0:00:05.3]} 44. f5 {[%clk 0:01:11.8]}
44... e5 {[%clk 0:00:02.5]} 45. Qe3 {[%clk 0:01:07.1]} 45... g5 {[%clk
0:00:02.7]} 46. Ke1 {[%clk 0:01:04]} 46... Qd6 {[%clk 0:00:02.8]} 47. Qd2 {[%clk
0:01:02.6]} 47... Qb6 {[%clk 0:00:03.5]} 48. Qf2 {[%clk 0:01:02.1]} 48... Qc7
{[%clk 0:00:03.9]} 49. Qe3 {[%clk 0:00:58.6]} 49... Kg7 {[%clk 0:00:03.6]} 50.
Qf2 {[%clk 0:00:46.6]} 50... Qd6 {[%clk 0:00:03.9]} 51. Qa7 {[%clk 0:00:44.9]}
51... Bb3 {[%clk 0:00:03.7]} 52. Qe3 {[%clk 0:00:36]} 52... Qd1+ {[%clk
0:00:02.4]} 53. Kf2 {[%clk 0:00:36.1]} 53... Bc4 {[%clk 0:00:03.2]} 54. Bg2
{[%clk 0:00:32]} 54... Qxg4 {[%clk 0:00:02.9]} 55. Qxe5+ {[%clk 0:00:31.1]}
55... Kg8 {[%clk 0:00:03.6]} 56. f6 {[%clk 0:00:25.4]} 56... Qd1 {[%clk
0:00:02.7]} 57. Qe8+ {[%clk 0:00:24]} 57... Kh7 {[%clk 0:00:03.2]} 58. Be4#
{[%clk 0:00:24.3]} 1-0

[Event "*** Titled Tuesday Blitz"]
[Site "Chess.com"]
[Date "2020.11.03"]
[Round "3"]
[White "lelajavakhishvili"]
[Black "Sueetin"]
[Result "1-0"]
[WhiteElo "2538"]
[BlackElo "2310"]
[TimeControl "180+1"]
[EndTime "10:31:24 PST"]
[Termination "lelajavakhishvili won by resignation"]

1. d4 {[%clk 0:03:00.9]} 1... Nf6 {[%clk 0:02:59.8]} 2. c4 {[%clk 0:02:59.4]}
2... e6 {[%clk 0:03:00]} 3. Nf3 {[%clk 0:02:53.8]} 3... d5 {[%clk 0:02:59.7]} 4.
Nc3 {[%clk 0:02:53]} 4... Bb4 {[%clk 0:02:59.2]} 5. Bg5 {[%clk 0:02:47.8]} 5...
Nbd7 {[%clk 0:02:58.7]} 6. Qa4 {[%clk 0:02:34.7]} 6... c5 {[%clk 0:02:37.7]} 7.
dxc5 {[%clk 0:02:13.4]} 7... Bxc3+ {[%clk 0:02:24.2]} 8. bxc3 {[%clk 0:02:14.3]}
8... O-O {[%clk 0:02:24.4]} 9. cxd5 {[%clk 0:02:11]} 9... exd5 {[%clk
0:02:16.5]} 10. Qd4 {[%clk 0:02:10.4]} 10... Qa5 {[%clk 0:02:05.1]} 11. Nd2
{[%clk 0:02:01.4]} 11... Re8 {[%clk 0:01:50.1]} 12. e3 {[%clk 0:01:56.7]} 12...
Ne4 {[%clk 0:01:38.6]} 13. h4 {[%clk 0:01:40.8]} 13... Nxd2 {[%clk 0:01:29.2]}
14. Qxd2 {[%clk 0:01:36]} 14... Nxc5 {[%clk 0:01:29.3]} 15. Bd3 {[%clk
0:01:22.1]} 15... Nb3 {[%clk 0:01:19.6]} 16. Bxh7+ {[%clk 0:01:13.5]} 16... Kh8
{[%clk 0:01:06.1]} 17. Qb2 {[%clk 0:00:56.7]} 17... Nxa1 {[%clk 0:01:00.8]} 18.
Bb1 {[%clk 0:00:56.9]} 18... d4 {[%clk 0:00:56.2]} 19. Qxa1 {[%clk 0:00:51.1]}
19... Bf5 {[%clk 0:00:44.1]} 20. Bxf5 {[%clk 0:00:35.4]} 20... Qxf5 {[%clk
0:00:44]} 21. cxd4 {[%clk 0:00:34.3]} 21... Qd3 {[%clk 0:00:43.6]} 22. Qd1
{[%clk 0:00:32.9]} 22... Qc3+ {[%clk 0:00:42.6]} 23. Qd2 {[%clk 0:00:31.4]}
23... Qa1+ {[%clk 0:00:40.1]} 24. Qd1 {[%clk 0:00:31.7]} 24... Qc3+ {[%clk
0:00:40.1]} 25. Qd2 {[%clk 0:00:31.6]} 25... Rac8 {[%clk 0:00:20.3]} 26. Qxc3
{[%clk 0:00:20.9]} 26... Rxc3 {[%clk 0:00:21.2]} 27. Ke2 {[%clk 0:00:19.6]}
27... f6 {[%clk 0:00:16.3]} 28. Bf4 {[%clk 0:00:18.6]} 28... Rec8 {[%clk
0:00:10.7]} 29. Kf3 {[%clk 0:00:17.1]} 29... Ra3 {[%clk 0:00:09]} 30. Rb1 {[%clk
0:00:16.5]} 30... b6 {[%clk 0:00:08.8]} 31. Rb2 {[%clk 0:00:16.7]} 31... Rac3
{[%clk 0:00:04.7]} 32. d5 {[%clk 0:00:15.7]} 32... Kg8 {[%clk 0:00:02.5]} 33. d6
{[%clk 0:00:15.2]} 33... Kf7 {[%clk 0:00:02.7]} 34. g4 {[%clk 0:00:11.9]} 34...
Rd8 {[%clk 0:00:02.5]} 35. h5 {[%clk 0:00:11.6]} 35... Ke6 {[%clk 0:00:02.7]}
36. a4 {[%clk 0:00:11]} 36... Rc4 {[%clk 0:00:02.2]} 37. a5 {[%clk 0:00:10.3]}
37... bxa5 {[%clk 0:00:01.6]} 38. Rb5 {[%clk 0:00:10.5]} 38... Rxd6 {[%clk
0:00:01.6]} 39. Bxd6 {[%clk 0:00:09.9]} 39... Kxd6 {[%clk 0:00:02.5]} 40. Rxa5
{[%clk 0:00:10.6]} 40... Rc7 {[%clk 0:00:02.6]} 41. Kf4 {[%clk 0:00:10.5]} 41...
Ke6 {[%clk 0:00:02.9]} 42. e4 {[%clk 0:00:10.3]} 42... Kf7 {[%clk 0:00:03]} 43.
f3 {[%clk 0:00:10.5]} 43... Ke6 {[%clk 0:00:03.3]} 44. Ra6+ {[%clk 0:00:10.5]}
44... Kf7 {[%clk 0:00:03.2]} 45. Kf5 {[%clk 0:00:10.7]} 45... Rb7 {[%clk
0:00:03.7]} 46. f4 {[%clk 0:00:10.5]} 46... Rb5+ {[%clk 0:00:04]} 47. e5 {[%clk
0:00:10.9]} 47... fxe5 {[%clk 0:00:03.5]} 48. Rxa7+ {[%clk 0:00:09.1]} 48... Rb7
{[%clk 0:00:04.4]} 49. Rxb7+ {[%clk 0:00:07.4]} 1-0

[Event "*** Titled Tuesday Blitz"]
[Site "Chess.com"]
[Date "2020.11.03"]
[Round "3"]
[White "vanea_03"]
[Black "ChessWarrior7197"]
[Result "0-1"]
[WhiteElo "2724"]
[BlackElo "3000"]
[TimeControl "180+1"]
[EndTime "10:31:26 PST"]
[Termination "ChessWarrior7197 won by resignation"]

1. d4 {[%clk 0:03:00.9]} 1... d5 {[%clk 0:03:00]} 2. c4 {[%clk 0:03:01.5]} 2...
e6 {[%clk 0:02:59.1]} 3. Nc3 {[%clk 0:03:02]} 3... c5 {[%clk 0:02:59.5]} 4. cxd5
{[%clk 0:03:02.1]} 4... exd5 {[%clk 0:03:00.4]} 5. dxc5 {[%clk 0:03:02.7]} 5...
d4 {[%clk 0:02:57.9]} 6. Na4 {[%clk 0:03:03.1]} 6... Nc6 {[%clk 0:02:58.4]} 7.
Nf3 {[%clk 0:02:55.4]} 7... Bxc5 {[%clk 0:02:58]} 8. Nxc5 {[%clk 0:02:54.7]}
8... Qa5+ {[%clk 0:02:58.5]} 9. Bd2 {[%clk 0:02:54.9]} 9... Qxc5 {[%clk
0:02:59]} 10. e3 {[%clk 0:02:55.4]} 10... Nf6 {[%clk 0:02:51.2]} 11. Rc1 {[%clk
0:02:50.7]} 11... Qb6 {[%clk 0:02:50.9]} 12. Bc4 {[%clk 0:02:44]} 12... O-O
{[%clk 0:02:49]} 13. O-O {[%clk 0:02:43.8]} 13... Bg4 {[%clk 0:02:47.4]} 14. Qb3
{[%clk 0:02:23]} 14... Ne4 {[%clk 0:02:38.4]} 15. Be1 {[%clk 0:02:05.4]} 15...
dxe3 {[%clk 0:02:28.7]} 16. Qxb6 {[%clk 0:02:04.6]} 16... axb6 {[%clk
0:02:25.8]} 17. fxe3 {[%clk 0:02:05.1]} 17... Rfc8 {[%clk 0:02:01.2]} 18. Bb3
{[%clk 0:01:42.6]} 18... Be6 {[%clk 0:01:55]} 19. Bxe6 {[%clk 0:01:23.3]} 19...
fxe6 {[%clk 0:01:55.9]} 20. a3 {[%clk 0:01:23.6]} 20... b5 {[%clk 0:01:56.5]}
21. Bc3 {[%clk 0:01:10.6]} 21... Rd8 {[%clk 0:01:45.7]} 22. Bd4 {[%clk
0:01:08.7]} 22... Rd5 {[%clk 0:01:39.8]} 23. Rfe1 {[%clk 0:00:53.1]} 23... Rad8
{[%clk 0:01:38.1]} 24. Bb6 {[%clk 0:00:53.5]} 24... R8d7 {[%clk 0:01:37.7]} 25.
Rc2 {[%clk 0:00:51.7]} 25... Rd1 {[%clk 0:01:34.7]} 26. Kf1 {[%clk 0:00:51.4]}
26... e5 {[%clk 0:01:20.6]} 27. Ke2 {[%clk 0:00:49.9]} 27... R1d5 {[%clk
0:01:18.7]} 28. Rec1 {[%clk 0:00:43.2]} 28... Kf7 {[%clk 0:01:16.4]} 29. Bc5
{[%clk 0:00:26.5]} 29... Ke6 {[%clk 0:01:12.4]} 30. Bb4 {[%clk 0:00:26.5]} 30...
h6 {[%clk 0:01:09.9]} 31. Be1 {[%clk 0:00:25.4]} 31... g5 {[%clk 0:01:09.6]} 32.
g4 {[%clk 0:00:26]} 32... h5 {[%clk 0:01:02.3]} 33. h3 {[%clk 0:00:20.9]} 33...
hxg4 {[%clk 0:01:01.2]} 34. hxg4 {[%clk 0:00:21.8]} 34... Rh7 {[%clk 0:01:01.5]}
35. Bb4 {[%clk 0:00:18.7]} 35... Rdd7 {[%clk 0:00:51.4]} 36. Rxc6+ {[%clk
0:00:10.8]} 36... bxc6 {[%clk 0:00:49.5]} 37. Rxc6+ {[%clk 0:00:11.7]} 37... Kd5
{[%clk 0:00:50.1]} 38. Rb6 {[%clk 0:00:10.8]} 38... Rb7 {[%clk 0:00:45.8]} 39.
Rg6 {[%clk 0:00:10.1]} 39... Rbf7 {[%clk 0:00:43.7]} 40. Nxg5 {[%clk 0:00:06.8]}
40... Rh2+ {[%clk 0:00:42.7]} 41. Kd3 {[%clk 0:00:07.3]} 41... Nf2+ {[%clk
0:00:30.6]} 42. Kc2 {[%clk 0:00:07.7]} 42... Nxg4+ {[%clk 0:00:28.6]} 43. Kb3
{[%clk 0:00:08.1]} 43... Rf6 {[%clk 0:00:21.2]} 44. e4+ {[%clk 0:00:05.3]} 44...
Kc6 {[%clk 0:00:21.6]} 45. Rg7 {[%clk 0:00:05.3]} 45... Rff2 {[%clk 0:00:19]}
46. Bc3 {[%clk 0:00:04.8]} 46... Ne3 {[%clk 0:00:18.5]} 47. Nf7 {[%clk
0:00:04.9]} 47... Nd1 {[%clk 0:00:13.9]} 48. Nxe5+ {[%clk 0:00:05.3]} 48... Kd6
{[%clk 0:00:11.4]} 49. Rg6+ {[%clk 0:00:04.4]} 49... Kc7 {[%clk 0:00:11.8]} 50.
Ng4 {[%clk 0:00:04.7]} 50... Rxb2+ {[%clk 0:00:10.9]} 0-1